bitfinex-derivatives/quotes_BTCF0:USTF0_20241003
["timestamp","ask_amount","ask_price","bid_price","bid_amount"]
[1727977225015,0.26675049,60461.0,60460.0,0.082703]
[1727977225322,0.11209777,60461.0,60460.0,0.082703]
[1727977228722,0.002,60461.0,60460.0,0.082703]
[1727977232835,0.002,60461.0,60458.0,0.01516342]
[1727977233024,0.272705,60459.0,60453.0,0.1596]
[1727977233220,0.19,60454.0,60451.0,0.3608]
[1727977233426,0.082714,60452.0,60451.0,0.3608]
[1727977233828,0.19,60454.0,60451.0,0.3608]
[1727977233829,0.19,60454.0,60451.0,0.37608702]
[1727977234025,0.082714,60452.0,60451.0,0.37608702]
[1727977235137,0.083714,60452.0,60451.0,0.37908702]
[1727977235722,0.13549526,60452.0,60451.0,0.38508702]
[1727977236035,0.13449526,60452.0,60451.0,0.38508702]
[1727977236336,0.13349526,60452.0,60451.0,0.38308702]
[1727977236935,0.13449526,60452.0,60451.0,0.38408702]
[1727977237336,0.05178126,60452.0,60451.0,0.46680202]
[1727977237534,0.05178126,60452.0,60451.0,0.46580202]
[1727977238227,0.05078126,60452.0,60451.0,0.46280202]
[1727977238430,0.05078126,60452.0,60451.0,0.46580202]
[1727977238929,0.05078126,60452.0,60451.0,0.46180202]
[1727977239234,0.05078126,60452.0,60451.0,0.46580202]
[1727977241431,0.05078126,60452.0,60451.0,1.75208202]
[1727977242237,0.05078126,60452.0,60451.0,0.46580202]
[1727977242630,0.05078126,60452.0,60451.0,0.38308702]
[1727977242833,0.32349526,60452.0,60451.0,0.38308702]
[1727977243634,0.32349526,60452.0,60451.0,0.3638]
[1727977243829,0.272714,60452.0,60451.0,0.3678]
[1727977244630,0.272714,60452.0,60451.0,0.3668]
[1727977245435,0.272714,60452.0,60451.0,0.3648]
[1727977246133,1.368994,60452.0,60440.0,0.01524821]
[1727977246334,0.082732,60439.0,60438.0,0.36328158]
[1727977246542,0.272732,60439.0,60438.0,0.36328158]
[1727977248231,0.272732,60439.0,60438.0,0.3608]
[1727977248540,0.272732,60439.0,60422.0,0.082755]
[1727977248541,0.082755,60423.0,60422.0,0.082755]
[1727977248737,0.272755,60423.0,60422.0,0.082755]
[1727977249237,0.27275,60426.0,60424.0,0.082751]
[1727977249437,0.082751,60425.0,60424.0,0.082751]
[1727977250636,0.082751,60425.0,60422.0,0.002]
[1727977250843,0.001,60425.0,60422.0,0.002]
[1727977251039,0.082753,60424.0,60422.0,0.002]
[1727977251638,0.082753,60424.0,60421.0,0.443556]
[1727977252546,0.083753,60424.0,60421.0,0.443556]
[1727977253250,0.001,60424.0,60421.0,0.443556]
[1727977253436,0.001,60424.0,60422.0,0.083755]
[1727977253437,0.002,60424.0,60422.0,0.083755]
[1727977253837,0.002,60424.0,60423.0,0.272754]
[1727977254648,0.082738,60435.0,60429.0,0.082744]
[1727977254843,0.082739,60434.0,60430.0,0.317344]
[1727977255343,0.082736,60437.0,60432.0,0.08274]
[1727977255544,0.082736,60436.0,60432.0,0.08274]
[1727977255739,0.3608,60439.0,60431.0,0.19]
[1727977255941,0.37570594,60439.0,60431.0,0.19]
[1727977256145,0.001,60434.0,60433.0,0.08274]
[1727977257550,0.37670594,60439.0,60436.0,0.082735]
[1727977257750,0.37570594,60439.0,60436.0,0.082735]
[1727977257949,0.3608,60439.0,60437.0,0.082734]
[1727977258148,0.3608,60439.0,60433.0,0.002]
[1727977258149,0.36164,60444.0,60434.0,0.19]
[1727977258346,0.3608,60444.0,60442.0,0.082727]
[1727977258541,0.3608,60444.0,60443.0,0.2399]
[1727977258748,0.633525,60444.0,60443.0,0.2399]
[1727977259338,0.633525,60444.0,60443.0,0.0821]
[1727977259542,0.636525,60444.0,60443.0,0.0821]
[1727977260352,0.639525,60444.0,60443.0,0.0821]
[1727977260948,0.637525,60444.0,60443.0,0.0821]
[1727977261144,0.637525,60444.0,60443.0,0.002]
[1727977261549,0.633525,60444.0,60443.0,0.003]
[1727977262149,0.633525,60444.0,60443.0,0.002]
[1727977262542,0.633525,60444.0,60443.0,0.001]
[1727977263257,1.729845,60444.0,60443.0,0.001]
[1727977263852,1.129845,60444.0,60435.0,0.01511841]
[1727977264053,1.129845,60444.0,60435.0,0.19]
[1727977264054,0.3638,60444.0,60435.0,0.19]
[1727977264353,0.3678,60444.0,60443.0,0.082726]
[1727977265350,0.447525,60444.0,60443.0,0.082726]
[1727977266046,0.448525,60444.0,60443.0,0.082726]
[1727977267059,0.450525,60444.0,60443.0,0.082726]
[1727977267357,0.3678,60444.0,60443.0,0.082726]
[1727977268255,0.089725,60444.0,60437.0,0.082734]
[1727977268557,0.089725,60444.0,60442.0,0.082727]
[1727977268855,0.089725,60444.0,60443.0,0.0755]
[1727977269253,0.007,60444.0,60443.0,0.158226]
[1727977269954,0.003,60444.0,60443.0,0.158226]
[1727977270154,0.20526321,60449.0,60443.0,0.158226]
[1727977270155,0.082723,60445.0,60444.0,0.082725]
[1727977270454,0.20526321,60449.0,60444.0,0.243625]
[1727977270958,0.082723,60446.0,60444.0,0.243625]
[1727977271459,0.082723,60445.0,60444.0,0.1609]
[1727977272655,0.086723,60445.0,60444.0,0.1609]
[1727977272858,0.091723,60445.0,60444.0,0.1609]
[1727977273159,0.091723,60445.0,60436.0,0.3624]
[1727977273160,0.009,60445.0,60436.0,0.3624]
[1727977273349,0.272734,60437.0,60436.0,0.3608]
[1727977273554,0.082736,60436.0,60435.0,0.2366]
[1727977273955,0.13352989,60436.0,60435.0,0.2366]
[1727977275055,0.19288215,60436.0,60435.0,0.0797]
[1727977275257,0.13452989,60436.0,60435.0,0.0807]
[1727977275665,0.13552989,60436.0,60435.0,0.0827]
[1727977279158,0.13552989,60436.0,60435.0,0.003]
[1727977279360,0.082744,60430.0,60429.0,0.00248208]
[1727977279661,0.272759,60419.0,60418.0,0.08276]
[1727977279862,0.60160262,60419.0,60409.0,0.00156]
[1727977280056,0.082769,60412.0,60411.0,0.0749]
[1727977280257,0.68437162,60412.0,60411.0,0.0749]
[1727977280555,0.55372388,60412.0,60411.0,0.15767]
[1727977280756,0.55372388,60412.0,60411.0,0.0749]
[1727977280953,0.443569,60412.0,60411.0,0.0749]
[1727977281569,0.443569,60412.0,60411.0,0.1239915]
[1727977281570,0.444569,60412.0,60411.0,0.1239915]
[1727977281761,0.635569,60412.0,60411.0,0.0749]
[1727977283060,0.08277,60411.0,60405.0,0.0490915]
[1727977283267,0.08277,60411.0,60399.0,0.08160044]
[1727977283268,0.19,60406.0,60401.0,0.2079915]
[1727977283459,0.272782,60402.0,60401.0,0.0793]
[1727977284260,0.082782,60402.0,60401.0,0.0793]
[1727977284466,0.272782,60402.0,60401.0,0.162084]
[1727977284770,0.273782,60402.0,60401.0,0.162084]
[1727977285066,0.002,60402.0,60401.0,0.162084]
[1727977285266,0.002,60402.0,60401.0,0.0793]
[1727977285469,0.274782,60402.0,60401.0,0.0793]
[1727977285661,0.5528,60402.0,60395.0,0.0490915]
[1727977285964,0.5528,60402.0,60392.0,0.14488035]
[1727977285965,0.082792,60395.0,60394.0,0.0739]
[1727977286166,0.19,60396.0,60394.0,0.0739]
[1727977286369,0.082792,60395.0,60394.0,0.0739]
[1727977287364,0.083792,60395.0,60394.0,0.0739]
[1727977288565,0.001,60395.0,60394.0,0.0739]
[1727977288768,0.001,60395.0,60394.0,0.156693]
[1727977288961,0.002,60395.0,60394.0,0.156693]
[1727977289863,0.082779,60405.0,60395.0,0.082792]
[1727977290162,0.082779,60405.0,60400.0,0.082785]
[1727977290577,0.27278,60404.0,60400.0,0.082785]
[1727977290777,0.27278,60404.0,60401.0,0.082783]
[1727977290778,0.19,60404.0,60401.0,0.082783]
[1727977290960,0.19,60404.0,60394.0,0.0739]
[1727977290961,0.001,60405.0,60400.0,0.082784]
[1727977291277,0.002,60405.0,60404.0,0.08278]
[1727977291456,0.002,60405.0,60400.0,0.19]
[1727977291457,0.082781,60403.0,60397.0,0.082789]
[1727977291661,0.192,60405.0,60396.0,0.23889]
[1727977291662,0.082786,60400.0,60396.0,0.23889]
[1727977291868,0.19,60401.0,60396.0,0.1561]
[1727977292075,0.19,60401.0,60398.0,0.082788]
[1727977292466,0.082781,60403.0,60396.0,0.1561]
[1727977292673,0.001,60403.0,60401.0,0.082783]
[1727977292876,0.001,60403.0,60402.0,0.0728]
[1727977294274,0.002,60403.0,60402.0,0.0748]
[1727977294676,0.001,60403.0,60402.0,0.347582]
[1727977294875,0.3608,60414.0,60402.0,0.6256]
[1727977295069,0.3608,60414.0,60408.0,0.19]
[1727977295270,0.3608,60414.0,60411.0,0.082769]
[1727977295470,0.3608,60414.0,60413.0,0.082767]
[1727977296281,0.3618,60414.0,60413.0,0.082767]
[1727977296479,0.082768,60413.0,60411.0,0.002]
[1727977296678,0.082769,60412.0,60411.0,0.002]
[1727977297377,0.3628,60414.0,60413.0,0.002]
[1727977297582,0.3628,60414.0,60413.0,0.084767]
[1727977297782,0.3628,60414.0,60413.0,0.003]
[1727977298074,0.444566,60414.0,60413.0,0.001]
[1727977298277,0.634566,60414.0,60413.0,0.001]
[1727977298473,1.131126,60414.0,60413.0,0.001]
[1727977299480,0.08278,60404.0,60403.0,0.0773]
[1727977299679,0.27278,60404.0,60403.0,0.0773]
[1727977300581,0.27378,60404.0,60403.0,0.0793]
[1727977301179,0.002,60404.0,60403.0,0.162081]
[1727977301680,0.3608,60414.0,60410.0,0.082771]
[1727977301882,0.08277,60412.0,60411.0,0.16037]
[1727977302377,0.3608,60414.0,60411.0,0.0776]
[1727977302572,0.3608,60414.0,60413.0,0.082767]
[1727977303071,0.3608,60414.0,60411.0,0.0776]
[1727977303274,0.001,60412.0,60411.0,0.0796]
[1727977303582,0.083769,60412.0,60411.0,0.0796]
[1727977303770,0.001,60412.0,60411.0,0.16237]
[1727977304084,0.445566,60414.0,60413.0,0.002]
[1727977304285,0.3628,60414.0,60413.0,0.002]
[1727977304578,0.3628,60414.0,60413.0,0.084767]
[1727977304782,0.3618,60414.0,60413.0,0.084767]
[1727977305579,0.3618,60414.0,60413.0,0.083767]
[1727977306283,0.3618,60414.0,60413.0,0.086767]
[1727977306284,0.3628,60414.0,60413.0,0.086767]
[1727977308986,0.445566,60414.0,60413.0,0.004]
[1727977310979,0.42217459,60414.0,60413.0,0.004]
[1727977311173,0.42217459,60414.0,60413.0,0.086767]
[1727977311174,0.413613,60414.0,60413.0,0.086767]
[1727977312088,0.42217459,60414.0,60413.0,0.086767]
[1727977312383,0.41361288,60414.0,60413.0,0.086767]
[1727977313578,0.47298747,60414.0,60413.0,0.086767]
[1727977314287,0.41361288,60414.0,60413.0,0.086767]
[1727977314683,0.49637888,60414.0,60413.0,0.004]
[1727977314889,0.84575347,60414.0,60413.0,0.004]
[1727977315387,0.84575347,60414.0,60389.0,0.29820297]
[1727977315388,1.33244747,60414.0,60400.0,0.01548079]
[1727977315588,1.33244747,60414.0,60381.0,0.767811]
[1727977315589,0.082786,60399.0,60395.0,0.082792]
[1727977315792,0.13359888,60399.0,60393.0,0.1468]
[1727977316091,0.13359888,60399.0,60396.0,0.08279]
[1727977316286,0.13359888,60399.0,60394.0,0.01513711]
[1727977316287,0.13359888,60399.0,60398.0,0.08527093]
[1727977316783,0.13459888,60399.0,60398.0,0.08827093]
[1727977316991,0.05181288,60399.0,60398.0,0.08827093]
[1727977317383,0.05281288,60399.0,60398.0,0.08927093]
[1727977317582,0.002,60399.0,60398.0,0.08927093]
[1727977317781,0.05282225,60399.0,60398.0,0.08927093]
[1727977318386,0.05082288,60399.0,60398.0,1.10320293]
[1727977318688,0.05938613,60410.0,60409.0,0.082773]
[1727977318993,0.2146112,60414.0,60400.0,0.29]
[1727977319295,0.2146112,60414.0,60398.0,0.72808293]
[1727977319296,0.082767,60413.0,60405.0,0.1318685]
[1727977319491,0.082771,60411.0,60406.0,0.082776]
[1727977319682,0.29,60407.0,60405.0,0.0490915]
[1727977319889,0.082776,60407.0,60405.0,0.082777]
[1727977320191,0.082776,60407.0,60403.0,0.0490915]
[1727977320192,0.082777,60406.0,60403.0,0.082781]
[1727977321096,0.29,60408.0,60400.0,0.1318755]
[1727977321298,0.082782,60403.0,60401.0,0.082782]
[1727977321686,0.082784,60401.0,60400.0,0.0490915]
[1727977321892,0.082784,60401.0,60398.0,0.36328293]
[1727977321893,0.082785,60400.0,60399.0,0.0490915]
[1727977322291,0.082785,60400.0,60398.0,0.05157443]
[1727977322899,0.082785,60400.0,60394.0,0.0737]
[1727977322900,0.082785,60400.0,60392.0,0.06528035]
[1727977322901,0.6508,60399.0,60392.0,0.06528035]
[1727977323095,0.6508,60399.0,60389.0,0.06528035]
[1727977323096,0.29,60393.0,60389.0,0.06528035]
[1727977323298,0.082803,60387.0,60386.0,0.06528035]
[1727977323489,0.33137281,60387.0,60386.0,0.06528035]
[1727977323689,0.082807,60384.0,60383.0,0.08160044]
[1727977323901,0.29,60387.0,60383.0,0.20779457]
[1727977324087,0.29,60387.0,60386.0,0.06581264]
[1727977324292,0.372803,60387.0,60385.0,0.06581264]
[1727977324497,0.082808,60383.0,60382.0,0.06581264]
[1727977324694,1.872808,60383.0,60382.0,0.06581264]
[1727977324897,0.08281,60382.0,60381.0,0.06581264]
[1727977325195,0.082814,60379.0,60377.0,0.08160044]
[1727977325493,0.00084,60383.0,60378.0,0.41619737]
[1727977325698,0.001,60387.0,60378.0,0.41619737]
[1727977325699,0.001,60387.0,60386.0,0.082804]
[1727977326000,0.082791,60396.0,60382.0,0.16502632]
[1727977326001,0.082786,60400.0,60384.0,0.08221632]
[1727977326299,0.3608,60401.0,60388.0,0.29]
[1727977326597,0.29248439,60406.0,60391.0,0.082797]
[1727977326803,0.00248439,60406.0,60392.0,0.161896]
[1727977326995,0.00248439,60406.0,60399.0,0.082786]
[1727977327194,0.29248439,60406.0,60399.0,0.082786]
[1727977327499,0.082782,60402.0,60392.0,0.0791]
[1727977327702,0.082782,60402.0,60396.0,0.08279]
[1727977327896,0.082782,60402.0,60397.0,0.082789]
[1727977328095,0.29348439,60406.0,60397.0,0.082789]
[1727977328298,0.372784,60401.0,60397.0,0.082789]
[1727977328499,0.001,60399.0,60397.0,0.082789]
[1727977328700,0.001,60399.0,60392.0,0.0791]
[1727977328701,0.001,60399.0,60398.0,0.082788]
[1727977328903,0.29,60401.0,60398.0,0.082788]
[1727977329704,0.001,60402.0,60397.0,0.004]
[1727977329904,0.001,60402.0,60401.0,0.082784]
[1727977330394,0.00248439,60406.0,60404.0,0.082779]
[1727977330601,0.00248439,60406.0,60402.0,0.082782]
[1727977331397,0.082778,60405.0,60402.0,0.082782]
[1727977331904,0.00248439,60406.0,60398.0,0.006]
[1727977332103,0.00248439,60406.0,60405.0,0.082778]
[1727977332292,0.082764,60416.0,60404.0,0.082779]
[1727977332604,0.443565,60415.0,60413.0,0.29]
[1727977332800,0.3608,60415.0,60414.0,0.082766]
[1727977333894,0.3608,60423.0,60413.0,0.29]
[1727977334202,0.00248343,60428.0,60422.0,0.29]
[1727977334507,0.00248343,60428.0,60427.0,0.372748]
[1727977334899,0.00248343,60428.0,60427.0,0.29]
[1727977335205,0.00248343,60428.0,60423.0,0.3639]
[1727977335400,0.00248343,60428.0,60425.0,0.08275]
[1727977335603,0.00248343,60428.0,60427.0,0.085748]
[1727977336297,0.00348343,60428.0,60427.0,0.082748]
[1727977336501,0.00348343,60428.0,60427.0,0.372748]
[1727977336502,0.001,60428.0,60427.0,0.372748]
[1727977336706,0.002,60428.0,60427.0,0.372748]
[1727977336900,0.3608,60432.0,60427.0,0.372748]
[1727977336901,0.3608,60432.0,60431.0,0.082743]
[1727977337726,0.082734,60438.0,60434.0,0.082737]
[1727977338005,0.082733,60439.0,60434.0,0.082737]
[1727977338808,0.3608,60440.0,60431.0,0.008]
[1727977338809,0.082736,60436.0,60431.0,0.008]
[1727977339010,0.082736,60436.0,60434.0,0.004]
[1727977339710,0.082737,60435.0,60434.0,0.004]
[1727977340406,0.082737,60435.0,60434.0,0.007]
[1727977341209,0.13355674,60435.0,60434.0,0.005]
[1727977341606,0.13355674,60435.0,60434.0,0.001]
[1727977343016,0.13356118,60435.0,60434.0,0.001]
[1727977343313,1.60587674,60435.0,60414.0,0.0747]
[1727977343516,0.082759,60419.0,60409.0,0.29]
[1727977343712,0.08276,60419.0,60410.0,0.08277]
[1727977343912,0.08276,60419.0,60409.0,0.30528964]
[1727977344111,0.08276,60419.0,60418.0,0.08276]
[1727977344311,0.08276,60419.0,60409.0,0.30528964]
[1727977344312,0.082756,60421.0,60420.0,0.082758]
[1727977344514,0.13358466,60421.0,60420.0,0.082758]
[1727977345020,0.13358466,60421.0,60414.0,0.012]
[1727977345021,0.082765,60415.0,60414.0,0.012]
[1727977346113,0.13359765,60415.0,60414.0,0.012]
[1727977346619,0.082772,60411.0,60410.0,0.082771]
[1727977346920,0.29,60414.0,60402.0,0.3608]
[1727977347219,0.29,60414.0,60387.0,0.4465]
[1727977347220,0.3608,60406.0,60387.0,0.4465]
[1727977347421,0.082791,60396.0,60395.0,0.082791]
[1727977347917,0.082787,60399.0,60398.0,0.082785]
[1727977348321,0.05083793,60399.0,60398.0,0.082785]
[1727977349314,0.05083793,60399.0,60398.0,0.4584983]
[1727977349515,0.05940023,60411.0,60409.0,0.082772]
[1727977349719,0.05940023,60411.0,60410.0,0.082771]
[1727977349916,0.3608,60412.0,60410.0,0.082771]
[1727977350218,0.05940023,60414.0,60410.0,0.29]
[1727977350410,0.082755,60422.0,60410.0,0.29]
[1727977350411,0.082759,60419.0,60410.0,0.29]
[1727977350616,0.42020023,60421.0,60410.0,0.29]
[1727977350617,0.082761,60418.0,60410.0,0.29]
[1727977350816,0.082766,60415.0,60410.0,0.29]
[1727977351118,0.05940023,60420.0,60411.0,0.08277]
[1727977351119,0.14215823,60420.0,60411.0,0.08277]
[1727977351323,0.05940023,60420.0,60415.0,0.29]
[1727977351513,0.3608,60421.0,60420.0,0.082758]
[1727977353028,0.14213887,60425.0,60416.0,0.0799]
[1727977353029,0.05938687,60424.0,60423.0,0.082754]
[1727977353212,1.50084,60431.0,60425.0,0.082751]
[1727977353411,0.08523041,60428.0,60425.0,0.082751]
[1727977353617,0.00248341,60428.0,60427.0,0.082748]
[1727977354514,0.00248341,60428.0,60425.0,0.001]
[1727977354715,0.082749,60426.0,60425.0,0.001]
[1727977354923,0.13356606,60426.0,60425.0,0.001]
[1727977355624,0.13356606,60426.0,60425.0,0.005]
[1727977356015,0.13356606,60426.0,60425.0,0.004]
[1727977356217,0.082749,60426.0,60425.0,0.004]
[1727977356516,0.00248341,60428.0,60427.0,0.082748]
[1727977356718,0.3608,60434.0,60433.0,0.08274]
[1727977356919,0.3608,60434.0,60433.0,0.37274]
[1727977359226,0.3638,60434.0,60433.0,0.37274]
[1727977360020,0.3668,60434.0,60433.0,0.37274]
[1727977360324,0.006,60434.0,60433.0,0.37274]
[1727977361517,0.003,60434.0,60433.0,0.37274]
[1727977361717,0.003,60434.0,60433.0,0.37774]
[1727977362526,0.082728,60442.0,60433.0,0.37774]
[1727977362723,0.443525,60444.0,60441.0,0.082729]
[1727977363030,0.082727,60443.0,60441.0,0.082729]
[1727977363226,0.05080876,60442.0,60441.0,0.082729]
[1727977363620,0.05180876,60442.0,60441.0,0.082729]
[1727977364230,0.05480876,60442.0,60441.0,0.082729]
[1727977365422,0.05480876,60442.0,60436.0,0.3608]
[1727977365423,0.13653776,60442.0,60438.0,0.082733]
[1727977365623,0.082731,60440.0,60438.0,0.082733]
[1727977365828,0.082734,60437.0,60436.0,0.3608]
[1727977366131,0.13353149,60437.0,60436.0,0.3608]
[1727977366435,1.63353149,60437.0,60436.0,0.3608]
[1727977366641,1.69290113,60437.0,60436.0,0.3608]
[1727977366821,0.19290113,60437.0,60436.0,0.3608]
[1727977367139,0.13353149,60437.0,60436.0,0.3608]
[1727977367337,0.13353149,60437.0,60436.0,0.3658]
[1727977368037,0.13353149,60437.0,60436.0,0.005]
[1727977368730,0.13353149,60437.0,60436.0,0.004]
[1727977369034,1.63353149,60437.0,60436.0,0.004]
[1727977369237,1.69290113,60437.0,60436.0,0.003]
[1727977369621,1.70807219,60437.0,60436.0,0.003]
[1727977370041,0.11016713,60437.0,60436.0,0.085736]
[1727977370336,0.05379749,60437.0,60436.0,0.082736]
[1727977370727,0.05380275,60437.0,60436.0,0.082736]
[1727977370930,0.082737,60436.0,60433.0,0.082739]
[1727977371237,0.082737,60436.0,60434.0,0.082739]
[1727977371431,0.003,60437.0,60434.0,0.082739]
[1727977371432,0.082737,60435.0,60434.0,0.082739]
[1727977371937,0.003,60437.0,60434.0,0.082738]
[1727977372230,0.003,60437.0,60430.0,0.37569928]
[1727977372439,0.003,60437.0,60435.0,0.082737]
[1727977372633,0.002,60437.0,60430.0,0.37569928]
[1727977372825,0.082734,60438.0,60436.0,0.002]
[1727977373322,0.082734,60438.0,60436.0,0.082735]
[1727977373529,0.082734,60438.0,60435.0,0.003]
[1727977373935,0.083734,60438.0,60435.0,0.003]
[1727977374131,0.001,60438.0,60437.0,0.082734]
[1727977375631,0.082732,60439.0,60437.0,0.082734]
[1727977375831,0.001,60438.0,60437.0,0.082734]
[1727977376829,0.002,60438.0,60435.0,0.29]
[1727977377040,0.002,60438.0,60437.0,0.082734]
[1727977377437,0.001,60439.0,60438.0,0.082733]
[1727977377738,0.001,60439.0,60438.0,0.272733]
[1727977378242,0.0593644,60446.0,60444.0,0.082724]
[1727977378433,0.19289168,60446.0,60444.0,0.272724]
[1727977378636,0.05080428,60445.0,60444.0,0.272724]
[1727977378832,0.13352728,60445.0,60444.0,0.19]
[1727977379134,0.082727,60443.0,60441.0,0.082729]
[1727977379439,0.05080428,60442.0,60441.0,0.082729]
[1727977380738,0.13353328,60442.0,60439.0,0.08273]
[1727977380933,0.003,60443.0,60436.0,0.2303]
[1727977380934,0.08273,60441.0,60436.0,0.2303]
[1727977381135,0.05935538,60448.0,60440.0,0.29]
[1727977381434,0.04239835,60449.0,60448.0,0.082719]
[1727977381651,0.3608,60457.0,60456.0,0.082708]
[1727977381842,0.05935385,60461.0,60460.0,0.082703]
[1727977382050,0.05935385,60463.0,60455.0,0.6508]
[1727977382244,0.082702,60461.0,60456.0,0.082708]
[1727977382446,0.082701,60462.0,60455.0,0.6508]
[1727977382766,0.082708,60456.0,60455.0,0.3608]
[1727977382955,0.082702,60461.0,60451.0,0.29]
[1727977382956,0.082712,60454.0,60451.0,0.29]
[1727977383655,0.082712,60454.0,60451.0,0.30505759]
[1727977383840,0.159802,60461.0,60451.0,0.30505759]
[1727977384048,0.082707,60457.0,60453.0,0.082712]
[1727977384557,0.0751,60461.0,60455.0,0.29]
[1727977384744,0.05935385,60463.0,60462.0,0.0827]
[1727977384942,0.01543319,60469.0,60463.0,0.082699]
[1727977384943,0.42015385,60464.0,60463.0,0.082699]
[1727977385641,0.082699,60463.0,60460.0,0.372703]
[1727977385841,0.3608,60464.0,60460.0,0.29]
[1727977386048,0.443498,60464.0,60462.0,0.082699]
[1727977386242,0.447498,60464.0,60462.0,0.082699]
[1727977386443,0.3648,60464.0,60460.0,0.30539627]
[1727977386647,0.082706,60459.0,60457.0,0.082706]
[1727977386848,0.082702,60461.0,60457.0,0.082706]
[1727977387054,0.082701,60462.0,60455.0,0.29]
[1727977387352,0.3648,60464.0,60463.0,0.082699]
[1727977387552,0.004,60464.0,60463.0,0.082699]
[1727977387857,0.002,60464.0,60461.0,0.3608]
[1727977388148,0.002,60464.0,60463.0,0.372699]
[1727977388349,0.00248119,60476.0,60463.0,0.29]
[1727977388542,0.00248119,60476.0,60475.0,0.082682]
[1727977389242,0.01539932,60481.0,60471.0,0.29]
[1727977389445,0.082676,60480.0,60479.0,0.29]
[1727977389950,0.082676,60480.0,60475.0,0.003]
[1727977389951,0.082681,60476.0,60475.0,0.003]
[1727977390654,0.082681,60476.0,60475.0,0.008]
[1727977391941,1.582681,60476.0,60475.0,0.005]
[1727977392253,0.082692,60468.0,60467.0,0.01517037]
[1727977392450,0.082693,60467.0,60466.0,0.00248052]
[1727977396962,0.082693,60467.0,60455.0,0.3608]
[1727977396963,0.082708,60456.0,60455.0,0.3608]
[1727977397150,1.45696,60467.0,60455.0,0.3608]
[1727977397151,0.29,60463.0,60455.0,0.3608]
[1727977397461,0.082706,60459.0,60458.0,0.082703]
[1727977397858,0.082706,60459.0,60455.0,0.443509]
[1727977397859,0.082708,60456.0,60455.0,0.443509]
[1727977398052,1.582708,60456.0,60455.0,0.3608]
[1727977398256,1.582708,60456.0,60455.0,0.3718]
[1727977398551,1.582708,60456.0,60455.0,0.3818]
[1727977398866,1.582708,60456.0,60455.0,0.46451]
[1727977399159,1.582708,60456.0,60455.0,0.45751]
[1727977399358,1.5,60456.0,60455.0,0.45751]
[1727977399863,0.0827,60463.0,60462.0,0.082698]
[1727977400058,0.082696,60465.0,60464.0,0.082695]
[1727977400264,0.3608,60467.0,60466.0,0.082695]
[1727977400461,0.082693,60468.0,60467.0,0.082692]
[1727977401258,0.082698,60465.0,60464.0,0.082697]
[1727977401459,0.13347141,60465.0,60464.0,0.082697]
[1727977401759,0.13346941,60465.0,60464.0,0.082697]
[1727977402268,0.002,60468.0,60464.0,0.082697]
[1727977402469,0.002,60468.0,60467.0,0.372693]
[1727977402759,0.002,60468.0,60467.0,0.868813]
[1727977402967,0.05931786,60485.0,60480.0,0.082676]
[1727977403153,0.082669,60486.0,60480.0,0.372676]
[1727977403154,0.4115603,60481.0,60480.0,0.372676]
[1727977404467,0.3608,60481.0,60480.0,0.372676]
[1727977404655,0.082664,60489.0,60486.0,0.082666]
[1727977404861,0.3608,60490.0,60483.0,0.082671]
[1727977404862,0.13342282,60488.0,60483.0,0.082671]
[1727977405163,0.13342382,60487.0,60483.0,0.082671]
[1727977405357,0.082665,60488.0,60483.0,0.082671]
[1727977405556,0.05075318,60487.0,60483.0,0.082671]
[1727977405757,0.082665,60488.0,60486.0,0.001]
[1727977405964,0.13342038,60487.0,60486.0,0.001]
[1727977406956,0.082681,60476.0,60475.0,0.3608]
[1727977407156,0.082681,60476.0,60467.0,0.0724]
[1727977407157,0.05075438,60476.0,60467.0,0.0724]
[1727977407360,0.082692,60469.0,60465.0,0.0779]
[1727977407563,0.29,60471.0,60465.0,0.160595]
[1727977407564,0.082693,60467.0,60465.0,0.160595]
[1727977407867,0.13344738,60467.0,60466.0,0.10056691]
[1727977408072,0.13344738,60467.0,60466.0,0.08517572]
[1727977408364,0.082693,60467.0,60466.0,0.08717572]
[1727977408955,0.082693,60467.0,60466.0,0.08617572]
[1727977409355,0.082684,60474.0,60468.0,0.082691]
[1727977409551,0.13345303,60473.0,60470.0,0.082689]
[1727977409764,0.05076703,60472.0,60470.0,0.082689]
[1727977409956,0.05076703,60471.0,60470.0,0.082689]
[1727977410158,1.50092,60475.0,60474.0,0.082684]
[1727977410358,0.05076432,60475.0,60474.0,0.372684]
[1727977410563,0.3608,60490.0,60475.0,0.082682]
[1727977410766,0.05075896,60489.0,60488.0,0.372665]
[1727977410958,0.3608,60503.0,60488.0,0.89]
[1727977411153,0.3608,60503.0,60499.0,0.29]
[1727977411154,0.05075032,60502.0,60499.0,0.29]
[1727977411358,0.443445,60503.0,60499.0,0.29]
[1727977411662,0.3608,60503.0,60499.0,0.29]
[1727977411961,0.443445,60503.0,60499.0,0.29]
[1727977412263,0.082647,60501.0,60499.0,0.291]
[1727977412466,0.002,60502.0,60499.0,0.30606017]
[1727977412656,0.002,60502.0,60500.0,0.49588]
[1727977412965,0.082631,60513.0,60501.0,0.49584]
[1727977413167,0.3608,60515.0,60509.0,0.29]
[1727977413465,0.3608,60515.0,60514.0,0.29]
[1727977414164,1.50088,60521.0,60514.0,0.29]
[1727977414165,0.00088,60521.0,60514.0,0.29]
[1727977414471,0.443418,60522.0,60514.0,0.29]
[1727977414665,0.001,60515.0,60514.0,0.373629]
[1727977414866,0.004,60515.0,60514.0,0.374629]
[1727977415459,0.004,60515.0,60514.0,0.870389]